fUSD/lending_fUSD_20260530
["ID","MTS","AMOUNT","RATE_DAILY","PERIOD"]
[423402760,1780084762000,-500.0,0.00041205,120]
[423402761,1780084762000,-6097.12,0.00041205,120]
[423402763,1780084762000,-500.0,0.00041205,120]
[423402762,1780084762000,-500.0,0.00041205,120]
[423402764,1780084762000,-500.0,0.00041205,120]
[423402757,1780084762000,-928.69,0.00041205,120]
[423402765,1780084763000,-4026.5,0.00041205,120]
[423402766,1780084763000,-500.0,0.00041205,120]
[423402767,1780084763000,-2705.52,0.00041205,120]
[423402768,1780084763000,-949.69,0.00041205,120]
[423402769,1780084763000,-500.0,0.00041205,120]
[423402770,1780084763000,-500.0,0.00041205,120]
[423402771,1780084763000,-500.0,0.00041205,120]
[423402773,1780084763000,-1374.76,0.00041205,120]
[423402774,1780084763000,-531.68,0.00041205,120]
[423402775,1780084763000,-500.0,0.00041205,120]
[423402776,1780084763000,-500.0,0.00041205,120]
[423402778,1780084763000,-577.51,0.00041205,120]
[423402777,1780084763000,-7102.73,0.00041205,120]
[423402779,1780084763000,-1806.35,0.00041205,120]
[423402772,1780084763000,-1627.73,0.00041205,120]
[423402780,1780084764000,-1031.26,0.00041205,120]
[423402781,1780084764000,-500.0,0.00041205,120]
[423402782,1780084764000,-1633.62,0.00041205,120]
[423402783,1780084764000,-500.0,0.00041205,120]
[423402784,1780084764000,-1417.36,0.00041205,120]
[423402785,1780084764000,-1070.33,0.00041205,120]
[423402786,1780084764000,-500.0,0.00041205,120]
[423402788,1780084764000,-626.89663003,0.00041205,120]
[423402787,1780084764000,-692.2,0.00041205,120]
[423402790,1780084764000,-664.43,0.00041205,120]
[423402792,1780084764000,-500.0,0.00041205,120]
[423402791,1780084764000,-500.0,0.00041205,120]
[423402794,1780084764000,-593.29,0.00041205,120]
[423402793,1780084764000,-500.0,0.00041205,120]
[423402795,1780084764000,-1263.4,0.00041205,120]
[423402797,1780084764000,-500.0,0.00041205,120]
[423402796,1780084764000,-1937.55,0.00041205,120]
[423402789,1780084764000,-3504.16,0.00041205,120]
[423402798,1780084765000,-500.0,0.00041205,120]
[423402799,1780084765000,-500.0,0.00041205,120]
[423402800,1780084765000,-500.0,0.00041205,120]
[423402801,1780084765000,-500.0,0.00041205,120]
[423402802,1780084765000,-2939.52,0.00041205,120]
[423402803,1780084765000,-500.0,0.00041205,120]
[423402804,1780084765000,-500.0,0.00041205,120]
[423402805,1780084765000,-500.0,0.00041205,120]
[423402807,1780084765000,-2579.97,0.00041205,120]
[423402809,1780084765000,-500.0,0.00041205,120]
[423402808,1780084765000,-500.0,0.00041205,120]
[423402811,1780084765000,-754.1,0.00041205,120]
[423402810,1780084765000,-500.0,0.00041205,120]
[423402812,1780084765000,-500.0,0.00041205,120]
[423402813,1780084765000,-500.0,0.00041205,120]
[423402806,1780084765000,-500.0,0.00041205,120]
[423402814,1780084766000,-500.0,0.00041205,120]
[423402820,1780084766000,-1766.6,0.00041205,120]
[423402815,1780084766000,-2388.18,0.00041205,120]
[423402817,1780084766000,-1841.85,0.00041205,120]
[423402818,1780084766000,-505.93,0.00041205,120]
[423402819,1780084766000,-500.0,0.00041205,120]
[423402821,1780084766000,-500.0,0.00041205,120]
[423402822,1780084766000,-500.0,0.00041205,120]
[423402816,1780084766000,-682.16,0.00041205,120]
[423402824,1780084766000,-850.39,0.00041205,120]
[423402831,1780084766000,-500.0,0.00041205,120]
[423402830,1780084766000,-1259.87,0.00041205,120]
[423402829,1780084766000,-500.0,0.00041205,120]
[423402823,1780084766000,-609.07,0.00041205,120]
[423402828,1780084766000,-500.0,0.00041205,120]
[423402825,1780084766000,-500.0,0.00041205,120]
[423402826,1780084766000,-500.0,0.00041205,120]
[423402827,1780084766000,-895.35,0.00041205,120]
[423402839,1780084767000,-500.0,0.00041205,120]
[423402833,1780084767000,-500.0,0.00041205,120]
[423402832,1780084767000,-7448.84,0.00041205,120]
[423402834,1780084767000,-2792.76,0.00041205,120]
[423402835,1780084767000,-500.0,0.00041205,120]
[423402836,1780084767000,-500.0,0.00041205,120]
[423402837,1780084767000,-500.0,0.00041205,120]
[423402838,1780084767000,-500.0,0.00041205,120]
[423402840,1780084767000,-1411.46,0.00041205,120]
[423402842,1780084767000,-500.0,0.00041205,120]
[423402841,1780084767000,-2108.16,0.00041205,120]
[423402843,1780084767000,-500.0,0.00041205,120]
[423402844,1780084767000,-500.0,0.00041205,120]
[423402846,1780084767000,-632.75,0.00041205,120]
[423402845,1780084767000,-500.0,0.00041205,120]
[423402847,1780084767000,-580.10008501,0.00041205,120]
[423402848,1780084767000,-500.0,0.00041205,120]
[423402849,1780084768000,-707.62,0.00041205,120]
[423402851,1780084768000,-3061.77,0.00041205,120]
[423402852,1780084768000,-500.0,0.00041205,120]
[423402853,1780084768000,-500.0,0.00041205,120]
[423402854,1780084768000,-6190.48,0.00041205,120]
[423402856,1780084768000,-500.0,0.00041205,120]
[423402855,1780084768000,-500.0,0.00041205,120]
[423402850,1780084768000,-500.0,0.00041205,120]
[423402858,1780084768000,-500.0,0.00041205,120]
[423402860,1780084768000,-419.08166267,0.00041205,120]
[423402859,1780084768000,-500.0,0.00041205,120]
[423402862,1780084768000,-500.0,0.00041205,120]
[423402861,1780084768000,-500.0,0.00041205,120]
[423402864,1780084768000,-713.34,0.00041205,120]
[423402863,1780084768000,-354.08732426,0.00041205,120]
[423402865,1780084768000,-500.0,0.00041205,120]
[423402857,1780084768000,-500.0,0.00041205,120]
[423402866,1780084769000,-500.0,0.00041205,120]
[423402868,1780084769000,-500.0,0.00041205,120]
[423402870,1780084769000,-500.0,0.00041205,120]
[423402869,1780084769000,-1407.3,0.00041205,120]
[423402871,1780084769000,-500.0,0.00041205,120]
[423402872,1780084769000,-1446.13,0.00041205,120]
[423402873,1780084769000,-932.74,0.00041205,120]
[423402867,1780084769000,-500.0,0.00041205,120]
[423402875,1780084769000,-500.0,0.00041205,120]
[423402876,1780084769000,-500.0,0.00041205,120]
[423402878,1780084769000,-500.0,0.00041205,120]
[423402877,1780084769000,-500.0,0.00041205,30]
[423402879,1780084769000,-3609.6,0.00041205,120]
[423402880,1780084769000,-1040.34,0.00041205,120]
[423402882,1780084769000,-984.52,0.00041205,120]
[423402881,1780084769000,-500.0,0.00041205,120]
[423402874,1780084769000,-500.0,0.00041205,120]
[423402883,1780084770000,-2929.36,0.00041205,120]
[423402884,1780084770000,-500.0,0.00041205,120]
[423402885,1780084770000,-864.71,0.00041205,120]
[423402887,1780084770000,-500.0,0.00041205,120]
[423402886,1780084770000,-1926.72,0.00041205,120]
[423402888,1780084770000,-1041.58,0.00041205,120]
[423402891,1780084770000,-500.0,0.00041205,120]
[423402890,1780084770000,-687.26,0.00041205,120]
[423402892,1780084770000,-500.0,0.00041205,120]
[423402893,1780084770000,-1254.25,0.00041205,120]
[423402894,1780084770000,-500.0,0.00041205,120]
[423402889,1780084770000,-500.0,0.00041205,120]
[423402901,1780084771000,-500.0,0.00041205,120]
[423402896,1780084771000,-500.0,0.00041205,120]
[423402895,1780084771000,-706.43,0.00041205,120]
[423402897,1780084771000,-500.0,0.00041205,120]
[423402898,1780084771000,-500.0,0.00041205,120]
[423402899,1780084771000,-500.0,0.00041205,120]
[423402900,1780084771000,-500.0,0.00041205,120]
[423402902,1780084771000,-2108.93,0.00041205,120]
[423402909,1780084771000,-3234.67,0.00041205,120]
[423402904,1780084771000,-500.0,0.00041205,120]
[423402911,1780084771000,-500.0,0.00041205,120]
[423402910,1780084771000,-500.0,0.00041205,120]
[423402912,1780084771000,-999.41,0.00041205,120]
[423402903,1780084771000,-3116.75,0.00041205,120]
[423402907,1780084771000,-1042.45,0.00041205,120]
[423402906,1780084771000,-583.43,0.00041205,120]
[423402905,1780084771000,-759.13,0.00041205,120]
[423402908,1780084771000,-3859.89,0.00041205,120]
[423402913,1780084772000,-955.96,0.00041205,120]
[423402915,1780084772000,-500.0,0.00041205,120]
[423402914,1780084772000,-500.0,0.00041205,120]
[423402916,1780084772000,-500.0,0.00041205,120]
[423402918,1780084772000,-500.0,0.00041205,120]
[423402919,1780084772000,-1424.42,0.00041205,120]
[423402920,1780084772000,-671.3,0.00041205,120]
[423402917,1780084772000,-500.0,0.00041205,120]
[423402922,1780084772000,-517.98,0.00041205,120]
[423402929,1780084772000,-500.0,0.00041205,120]
[423402928,1780084772000,-500.0,0.00041205,31]
[423402926,1780084772000,-1261.87,0.00041205,120]
[423402921,1780084772000,-500.0,0.00041205,120]
[423402924,1780084772000,-1729.64,0.00041205,120]
[423402925,1780084772000,-663.47,0.00041205,120]
[423402923,1780084772000,-500.0,0.00041205,120]
[423402927,1780084772000,-500.0,0.00041205,120]
[423402937,1780084773000,-2585.37,0.00041205,120]
[423402931,1780084773000,-500.0,0.00041205,120]
[423402932,1780084773000,-500.0,0.00041205,120]
[423402933,1780084773000,-1837.52,0.00041205,120]
[423402934,1780084773000,-500.0,0.00041205,120]
[423402935,1780084773000,-1408.32,0.00041205,120]
[423402936,1780084773000,-1936.61,0.00041205,120]
[423402930,1780084773000,-500.0,0.00041205,120]
[423402939,1780084773000,-500.0,0.00041205,120]
[423402940,1780084773000,-3018.26,0.00041205,120]
[423402941,1780084773000,-965.27,0.00041205,120]
[423402942,1780084773000,-500.0,0.00041205,120]
[423402943,1780084773000,-715.96,0.00041205,120]
[423402944,1780084773000,-500.0,0.00041205,120]
[423402945,1780084773000,-500.0,0.00041205,120]
[423402946,1780084773000,-968.38,0.00041205,120]
[423402938,1780084773000,-944.44,0.00041205,120]
[423402947,1780084774000,-1729.49,0.00041205,120]
[423402948,1780084774000,-633.4867091,0.00041205,120]
[423402949,1780084774000,-500.0,0.00041205,120]
[423402950,1780084774000,-1105.64,0.00041205,120]
[423402951,1780084774000,-3296.28,0.00041205,120]
[423402952,1780084774000,-500.0,0.00041205,120]
[423402953,1780084774000,-535.65519212,0.00041205,120]
[423402954,1780084774000,-909.77,0.00041205,120]
[423402955,1780084774000,-2264.46,0.00041205,120]
[423402957,1780084774000,-500.0,0.00041205,120]
[423402958,1780084774000,-350.24092224,0.00041205,120]
[423402959,1780084774000,-500.0,0.00041205,120]
[423402960,1780084774000,-500.0,0.00041205,120]
[423402961,1780084774000,-597.64,0.00041205,120]
[423402962,1780084774000,-500.0,0.00041205,120]
[423402963,1780084774000,-500.0,0.00041205,120]
[423402956,1780084774000,-500.0,0.00041205,120]
[423402969,1780084775000,-1436.63,0.00041205,120]
[423402968,1780084775000,-686.6,0.00041205,120]
[423402966,1780084775000,-500.0,0.00041205,120]
[423402970,1780084775000,-893.19,0.00041205,120]
[423402964,1780084775000,-564.2,0.00041205,120]
[423402965,1780084775000,-500.0,0.00041205,120]
[423402967,1780084775000,-500.0,0.00041205,120]
[423402971,1780084775000,-1161.94,0.00041205,120]
[423402979,1780084775000,-979.66,0.00041205,120]
[423402973,1780084775000,-2547.74,0.00041205,120]
[423402980,1780084775000,-500.0,0.00041205,120]
[423402978,1780084775000,-500.0,0.00041205,120]
[423402977,1780084775000,-2066.02,0.00041205,120]
[423402972,1780084775000,-500.0,0.00041205,120]
[423402974,1780084775000,-500.0,0.00041205,120]
[423402975,1780084775000,-500.0,0.00041205,120]
[423402976,1780084775000,-1338.01,0.00041205,120]
[423402981,1780084776000,-2291.71,0.00041205,120]
[423402982,1780084776000,-1104.86,0.00041205,120]
[423402983,1780084776000,-500.0,0.00041205,120]
[423402985,1780084776000,-2082.39,0.00041205,120]
[423402984,1780084776000,-1739.65,0.00041205,120]
[423402987,1780084776000,-2281.31,0.00041205,120]
[423402989,1780084776000,-500.0,0.00041205,120]
[423402986,1780084776000,-500.0,0.00041205,120]
[423402990,1780084776000,-500.0,0.00041205,60]
[423402992,1780084776000,-500.0,0.00041205,120]
[423402991,1780084776000,-500.0,0.00041205,120]
[423402993,1780084776000,-500.0,0.00041205,120]
[423402994,1780084776000,-676.82,0.00041205,120]
[423402995,1780084776000,-1132.11,0.00041205,120]
[423402996,1780084776000,-3372.18,0.00041205,120]
[423402997,1780084776000,-500.0,0.00041205,120]
[423402988,1780084776000,-500.0,0.00041205,120]
[423403004,1780084777000,-500.0,0.00041205,120]
[423402998,1780084777000,-500.0,0.00041205,120]
[423402999,1780084777000,-500.0,0.00041205,30]
[423403001,1780084777000,-500.0,0.00041205,120]
[423403000,1780084777000,-500.0,0.00041205,120]
[423403002,1780084777000,-500.0,0.00041205,120]
[423403005,1780084777000,-727.26,0.00041205,120]
[423403003,1780084777000,-1624.19,0.00041205,120]
[423403006,1780084777000,-500.0,0.00041205,120]
[423403014,1780084777000,-500.0,0.00041205,120]
[423403012,1780084777000,-500.0,0.00041205,120]
[423403013,1780084777000,-623.82,0.00041205,120]
[423403007,1780084777000,-500.0,0.00041205,120]
[423403010,1780084777000,-500.0,0.00041205,120]
[423403009,1780084777000,-500.0,0.00041205,120]
[423403008,1780084777000,-500.0,0.00041205,120]
[423403011,1780084777000,-500.0,0.00041205,120]
[423403022,1780084778000,-454.30657917,0.00041205,120]
[423403016,1780084778000,-1098.09,0.00041205,120]
[423403017,1780084778000,-500.0,0.00041205,120]
[423403018,1780084778000,-594.93,0.00041205,120]
[423403019,1780084778000,-3225.72,0.00041205,120]
[423403020,1780084778000,-500.0,0.00041205,120]
[423403021,1780084778000,-964.0,0.00041205,120]
[423403015,1780084778000,-500.0,0.00041205,120]
[423403024,1780084778000,-500.0,0.00041205,120]
[423403025,1780084778000,-1172.8,0.00041205,120]
[423403027,1780084778000,-500.0,0.00041205,120]
[423403026,1780084778000,-500.0,0.00041205,120]
[423403028,1780084778000,-500.0,0.00041205,120]
[423403029,1780084778000,-480.28578229,0.00041205,120]
[423403030,1780084778000,-723.81,0.00041205,120]
[423403031,1780084778000,-1252.39,0.00041205,120]
[423403032,1780084778000,-1983.03,0.00041205,120]
[423403023,1780084778000,-701.78,0.00041205,120]
[423403034,1780084779000,-500.0,0.00041205,120]
[423403033,1780084779000,-500.0,0.00041205,120]
[423403035,1780084779000,-500.0,0.00041205,120]
[423403036,1780084779000,-500.0,0.00041205,120]
[423403037,1780084779000,-1553.75,0.00041205,120]
[423403038,1780084779000,-500.0,0.00041205,120]
[423403040,1780084779000,-500.0,0.00041205,120]
[423403042,1780084779000,-500.0,0.00041205,120]
[423403041,1780084779000,-500.0,0.00041205,120]
[423403048,1780084779000,-183.72523603,0.00041205,30]
[423403047,1780084779000,-500.0,0.00041205,120]
[423403046,1780084779000,-500.0,0.00041205,120]
[423403039,1780084779000,-500.0,0.00041205,120]
[423403044,1780084779000,-500.0,0.00041205,120]
[423403043,1780084779000,-2167.78,0.00041205,120]
[423403045,1780084779000,-500.0,0.00041205,120]
[423403050,1780084780000,-500.0,0.00041205,120]
[423403049,1780084780000,-603.03,0.00041205,120]
[423403051,1780084780000,-1128.33,0.00041205,120]
[423403052,1780084780000,-500.0,0.00041205,120]
[423403053,1780084780000,-1913.41,0.00041205,120]
[423403055,1780084780000,-500.0,0.00041205,120]
[423403057,1780084780000,-500.0,0.00041205,120]
[423403054,1780084780000,-500.0,0.00041205,120]
[423403056,1780084780000,-500.0,0.00041205,120]
[423403060,1780084780000,-500.0,0.00041205,120]
[423403059,1780084780000,-566.91548938,0.00041205,120]
[423403062,1780084780000,-500.0,0.00041205,120]
[423403061,1780084780000,-387.76787474,0.00041205,120]
[423403063,1780084780000,-500.0,0.00041205,120]
[423403064,1780084780000,-500.0,0.00041205,120]
[423403065,1780084780000,-793.92,0.00041205,120]
[423403058,1780084780000,-500.0,0.00041205,120]
[423403072,1780084781000,-500.0,0.00041205,120]
[423403071,1780084781000,-2156.72,0.00041205,120]
[423403070,1780084781000,-747.09,0.00041205,120]
[423403074,1780084781000,-500.0,0.00041205,120]
[423403068,1780084781000,-500.0,0.00041205,60]
[423403067,1780084781000,-1536.55,0.00041205,120]
[423403069,1780084781000,-500.0,0.00041205,120]
[423403066,1780084781000,-1153.76,0.00041205,120]
[423403073,1780084781000,-1105.85,0.00041205,120]
[423403076,1780084781000,-2780.99,0.00041205,120]
[423403077,1780084781000,-1354.86,0.00041205,120]
[423403079,1780084781000,-928.98,0.00041205,120]
[423403078,1780084781000,-500.0,0.00041205,120]
[423403081,1780084781000,-468.49062064,0.00041205,120]
[423403080,1780084781000,-500.0,0.00041205,120]
[423403082,1780084781000,-389.45395549,0.00041205,90]
[423403075,1780084781000,-500.0,0.00041205,120]
[423403083,1780084782000,-500.0,0.00041205,120]
[423403084,1780084782000,-548.44,0.00041205,120]
[423403086,1780084782000,-1707.9,0.00041205,120]
[423403085,1780084782000,-500.0,0.00041205,120]
[423403087,1780084782000,-500.0,0.00041205,120]
[423403088,1780084782000,-619.05,0.00041205,120]
[423403089,1780084782000,-909.92,0.00041205,120]
[423403090,1780084782000,-500.0,0.00041205,120]
[423403093,1780084782000,-500.0,0.00041205,120]
[423403092,1780084782000,-500.0,0.00041205,120]
[423403095,1780084782000,-500.0,0.00041205,120]
[423403094,1780084782000,-500.0,0.00041205,120]
[423403096,1780084782000,-500.0,0.00041205,90]
[423403097,1780084782000,-500.0,0.00041205,120]
[423403098,1780084782000,-861.1,0.00041205,120]
[423403091,1780084782000,-500.0,0.00041205,120]
[423403099,1780084783000,-500.0,0.00041205,120]
[423403100,1780084783000,-500.0,0.00041205,120]
[423403106,1780084783000,-500.0,0.00041205,120]
[423403102,1780084783000,-500.0,0.00041205,120]
[423403103,1780084783000,-553.13,0.00041205,120]
[423403104,1780084783000,-500.0,0.00041205,120]
[423403105,1780084783000,-500.0,0.00041205,120]
[423403107,1780084783000,-648.15,0.00041205,120]
[423403101,1780084783000,-1582.76,0.00041205,120]
[423403109,1780084783000,-500.0,0.00041205,120]
[423403110,1780084783000,-500.0,0.00041205,120]
[423403111,1780084783000,-500.0,0.00041205,120]
[423403113,1780084783000,-500.0,0.00041205,120]
[423403112,1780084783000,-523.0,0.00041205,120]
[423403115,1780084783000,-500.0,0.00041205,120]
[423403114,1780084783000,-500.0,0.00041205,120]
[423403116,1780084783000,-500.0,0.00041205,120]
[423403108,1780084783000,-2592.47,0.00041205,120]
[423403117,1780084784000,-500.0,0.00041205,120]
[423403118,1780084784000,-454.51398584,0.00041205,120]
[423403119,1780084784000,-500.0,0.00041205,120]
[423403120,1780084784000,-500.0,0.00041205,120]
[423403121,1780084784000,-767.01,0.00041205,120]
[423403123,1780084784000,-2689.08,0.00041205,120]
[423403122,1780084784000,-500.0,0.00041205,120]
[423403124,1780084784000,-500.0,0.00041205,120]
[423403125,1780084784000,-500.0,0.00041205,120]
[423403127,1780084784000,-500.0,0.00041205,120]
[423403126,1780084784000,-602.27,0.00041205,120]
[423403128,1780084784000,-500.0,0.00041205,120]
[423403130,1780084784000,-500.0,0.00041205,120]
[423403129,1780084784000,-500.0,0.00041205,120]
[423403131,1780084784000,-500.0,0.00041205,30]
[423403132,1780084784000,-1805.38,0.00041205,120]
[423403133,1780084785000,-500.0,0.00041205,120]
[423403135,1780084785000,-500.0,0.00041205,120]
[423403134,1780084785000,-500.0,0.00041205,120]
[423403137,1780084785000,-512.94,0.00041205,120]
[423403136,1780084785000,-641.39,0.00041205,120]
[423403138,1780084785000,-2822.49,0.00041205,120]
[423403139,1780084785000,-861.65,0.00041205,120]
[423403140,1780084785000,-500.0,0.00041205,120]
[423403141,1780084785000,-500.0,0.00041205,120]
[423403143,1780084785000,-500.0,0.00041205,120]
[423403142,1780084785000,-500.0,0.00041205,120]
[423403144,1780084785000,-500.0,0.00041205,120]
[423403145,1780084785000,-500.0,0.00041205,120]
[423403146,1780084785000,-500.0,0.00041205,120]
[423403148,1780084785000,-1566.37,0.00041205,120]
[423403147,1780084785000,-500.0,0.00041205,120]
[423403149,1780084785000,-3405.86,0.00041205,120]
[423403150,1780084786000,-500.0,0.00041205,120]
[423403151,1780084786000,-500.0,0.00041205,120]
[423403152,1780084786000,-500.0,0.00041205,120]
[423403153,1780084786000,-500.0,0.00041205,120]
[423403154,1780084786000,-500.0,0.00041205,120]
[423403155,1780084786000,-500.0,0.00041205,120]
[423403156,1780084786000,-2740.2,0.00041205,120]
[423403158,1780084786000,-720.04,0.00041205,120]
[423403157,1780084786000,-500.0,0.00041205,120]
[423403159,1780084786000,-930.59,0.00041205,120]
[423403160,1780084786000,-500.0,0.00041205,120]
[423403161,1780084786000,-500.0,0.00041205,120]
[423403162,1780084786000,-500.0,0.00041205,120]
[423403163,1780084786000,-500.0,0.00041205,120]
[423403165,1780084786000,-500.0,0.00041205,120]
[423403164,1780084786000,-633.26,0.00041205,120]
[423403166,1780084786000,-500.0,0.00041205,120]
[423403167,1780084787000,-987.37,0.00041205,120]
[423403168,1780084787000,-500.0,0.00041205,120]
[423403169,1780084787000,-644.37,0.00041205,120]
[423403170,1780084787000,-857.8,0.00041205,120]
[423403171,1780084787000,-500.0,0.00041205,120]
[423403173,1780084787000,-558.0771169,0.00041205,120]
[423403174,1780084787000,-500.0,0.00041205,120]
[423403172,1780084787000,-452.97121709,0.00041205,120]
[423403177,1780084787000,-500.0,0.00041205,120]
[423403176,1780084787000,-939.79,0.00041205,120]
[423403178,1780084787000,-500.0,0.00041205,120]
[423403183,1780084787000,-500.0,0.00041205,120]
[423403179,1780084787000,-538.31,0.00041205,120]
[423403180,1780084787000,-507.75,0.00041205,120]
[423403181,1780084787000,-500.0,0.00041205,120]
[423403182,1780084787000,-500.0,0.00041205,120]
[423403175,1780084787000,-500.0,0.00041205,120]
[423403184,1780084788000,-500.0,0.00041205,120]
[423403185,1780084788000,-500.0,0.00041205,120]
[423403187,1780084788000,-500.0,0.00041205,120]
[423403189,1780084788000,-165.51365789,0.00041205,120]
[423403188,1780084788000,-500.0,0.00041205,120]
[423403191,1780084788000,-500.0,0.00041205,120]
[423403190,1780084788000,-1005.23,0.00041205,120]
[423403186,1780084788000,-703.79,0.00041205,120]
[423403193,1780084788000,-500.0,0.00041205,120]
[423403194,1780084788000,-500.0,0.00041205,120]
[423403196,1780084788000,-770.03,0.00041205,120]
[423403195,1780084788000,-514.19,0.00041205,120]
[423403199,1780084788000,-500.0,0.00041205,120]
[423403197,1780084788000,-1177.36,0.00041205,120]
[423403198,1780084788000,-500.0,0.00041205,120]
[423403192,1780084788000,-777.38,0.00041205,120]
[423403201,1780084789000,-500.0,0.00041205,120]
[423403200,1780084789000,-3738.57,0.00041205,120]
[423403202,1780084789000,-500.0,0.00041205,120]
[423403203,1780084789000,-500.0,0.00041205,120]
[423403204,1780084789000,-500.0,0.00041205,120]
[423403205,1780084789000,-797.11,0.00041205,120]
[423403207,1780084789000,-500.0,0.00041205,120]
[423403208,1780084789000,-500.0,0.00041205,120]
[423403209,1780084789000,-738.4,0.00041205,120]
[423403210,1780084789000,-1589.0,0.00041205,120]
[423403211,1780084789000,-500.0,0.00041205,120]
[423403206,1780084789000,-1044.73,0.00041205,120]
[423403217,1780084790000,-836.79,0.00041205,120]
[423403212,1780084790000,-500.0,0.00041205,120]
[423403213,1780084790000,-500.0,0.00041205,120]
[423403214,1780084790000,-500.0,0.00041205,120]
[423403215,1780084790000,-655.96,0.00041205,120]
[423403216,1780084790000,-1333.51,0.00041205,120]
[423403218,1780084790000,-500.0,0.00041205,120]
[423403225,1780084790000,-663.88,0.00041205,120]
[423403219,1780084790000,-500.0,0.00041205,120]
[423403221,1780084790000,-500.0,0.00041205,120]
[423403222,1780084790000,-500.0,0.00041205,120]
[423403223,1780084790000,-500.0,0.00041205,120]
[423403224,1780084790000,-500.0,0.00041205,120]
[423403226,1780084790000,-605.47,0.00041205,120]
[423403220,1780084790000,-500.0,0.00041205,120]
[423403227,1780084791000,-2240.31,0.00041205,120]
[423403228,1780084791000,-500.0,0.00041205,120]
[423403229,1780084791000,-826.8,0.00041205,120]
[423403230,1780084791000,-500.0,0.00041205,120]
[423403232,1780084791000,-500.0,0.00041205,120]
[423403231,1780084791000,-1685.25,0.00041205,120]
[423403234,1780084791000,-1096.13,0.00041205,120]
[423403233,1780084791000,-934.34,0.00041205,120]
[423403236,1780084791000,-500.0,0.00041205,120]
[423403237,1780084791000,-1217.2,0.00041205,120]
[423403238,1780084791000,-762.81,0.00041205,120]
[423403239,1780084791000,-500.0,0.00041205,120]
[423403240,1780084791000,-196.6614647,0.00041205,120]
[423403242,1780084791000,-500.0,0.00041205,120]
[423403241,1780084791000,-933.72,0.00041205,120]
[423403235,1780084791000,-500.0,0.00041205,120]
[423403243,1780084792000,-500.0,0.00041205,120]
[423403247,1780084792000,-1403.23,0.00041205,120]
[423403244,1780084792000,-500.0,0.00041205,120]
[423403246,1780084792000,-500.0,0.00041205,120]
[423403248,1780084792000,-500.0,0.00041205,120]
[423403249,1780084792000,-225.76883377,0.00041205,120]
[423403245,1780084792000,-1054.16,0.00041205,120]
[423403251,1780084792000,-500.0,0.00041205,120]
[423403257,1780084792000,-500.0,0.00041205,120]
[423403256,1780084792000,-500.0,0.00041205,120]
[423403255,1780084792000,-500.0,0.00041205,120]
[423403250,1780084792000,-814.05,0.00041205,120]
[423403253,1780084792000,-1445.38,0.00041205,120]
[423403252,1780084792000,-500.0,0.00041205,120]
[423403254,1780084792000,-500.0,0.00041205,120]
[423403259,1780084793000,-335.87707251,0.00041205,120]